bitfinex-derivatives/quotes_SOLF0:USTF0_20241107
["timestamp","ask_amount","ask_price","bid_price","bid_amount"]
[1730982592717,2.6691,187.25,187.22,6.56161387]
[1730982598418,6.56161387,187.27,187.22,6.56161387]
[1730982598624,2.6689,187.26,187.22,6.56161387]
[1730982601208,6.56161387,187.28,187.22,6.56161387]
[1730982601401,2.72,187.29,187.18,2.5781]
[1730982601402,6.56161387,187.27,187.21,6.56161387]
[1730982601908,2.6692,187.24,187.21,6.56161387]
[1730982602131,6.56161387,187.27,187.18,5.248]
[1730982602502,6.56161387,187.27,187.2,6.56161387]
[1730982603168,2.6692,187.24,187.2,6.56161387]
[1730982603174,2.6692,187.24,187.18,2.5781]
[1730982603175,6.56161387,187.28,187.22,6.56161387]
[1730982603380,2.669,187.26,187.22,6.56161387]
[1730982603904,2.669,187.26,187.21,2.6695]
[1730982604133,2.669,187.26,187.23,6.56161387]
[1730982605407,2.6683,187.3,187.25,6.56161387]
[1730982605712,2.6683,187.3,187.27,6.56161387]
[1730982605914,2.6683,187.3,187.28,6.56161387]
[1730982606233,2.668,187.32,187.28,6.56161387]
[1730982606411,2.668,187.32,187.3,6.56161387]
[1730982607032,2.668,187.32,187.28,6.56161387]
[1730982608021,6.56161387,187.34,187.28,6.56161387]
[1730982608310,2.6679,187.33,187.28,6.56161387]
[1730982608511,6.56161387,187.34,187.27,5.3687]
[1730982608728,2.7,187.37,187.29,6.56161387]
[1730982608915,8.90748006,187.38,187.29,6.56161387]
[1730982608916,6.56161387,187.36,187.29,6.56161387]
[1730982609121,6.56161387,187.36,187.31,6.56161387]
[1730982609624,6.56161387,187.37,187.31,6.56161387]
[1730982609815,6.56161387,187.37,187.28,2.5985]
[1730982609816,2.6674,187.37,187.33,6.56161387]
[1730982610410,2.6675,187.36,187.33,6.56161387]
[1730982610613,12.90629393,187.38,187.33,6.56161387]
[1730982610816,6.34468006,187.38,187.35,6.56161387]
[1730982611015,2.6671,187.38,187.36,6.56161387]
[1730982611215,6.56161387,187.41,187.36,6.56161387]
[1730982611411,6.56161387,187.41,187.37,4.52]
[1730982611812,2.6671,187.39,187.37,4.52]
[1730982612216,3.9285,187.44,187.37,4.52]
[1730982612518,6.56161387,187.43,187.38,6.56161387]
[1730982613422,2.6666,187.42,187.38,6.56161387]
[1730982614023,6.56161387,187.43,187.39,4.26]
[1730982614319,6.34468006,187.48,187.41,6.56161387]
[1730982614518,12.90629393,187.48,187.41,6.56161387]
[1730982614711,6.34468006,187.48,187.41,6.56161387]
[1730982614995,2.6661,187.45,187.41,6.56161387]
[1730982615122,2.6661,187.45,187.4,6.56161387]
[1730982615123,6.56161387,187.45,187.4,6.56161387]
[1730982615321,9.22811387,187.43,187.39,12.78]
[1730982615619,9.22811387,187.43,187.39,16.0]
[1730982616427,2.6666,187.42,187.39,13.3]
[1730982617433,2.6664,187.43,187.39,13.3]
[1730982617627,2.6664,187.43,187.4,6.56161387]
[1730982618319,2.6664,187.44,187.4,6.56161387]
[1730982618728,6.56161387,187.46,187.39,13.3]
[1730982618920,2.6665,187.43,187.4,6.56161387]
[1730982620429,2.6663,187.44,187.4,6.56161387]
[1730982624130,2.6663,187.44,187.42,6.56161387]
[1730982624726,10.30798006,187.5,187.42,6.56161387]
[1730982624727,2.6661,187.46,187.42,6.56161387]
[1730982625055,6.56161387,187.48,187.42,6.56161387]
[1730982625547,9.22741387,187.48,187.42,6.56161387]
[1730982625742,2.6658,187.48,187.42,6.56161387]
[1730982625919,6.56161387,187.48,187.42,6.56161387]
[1730982626146,2.6661,187.46,187.4,9.26161387]
[1730982626938,6.56161387,187.47,187.4,9.26161387]
[1730982627227,2.6662,187.45,187.4,9.26161387]
[1730982627630,2.6662,187.45,187.41,4.26]
[1730982627926,6.56161387,187.47,187.41,4.26]
[1730982628132,1.2936,187.5,187.41,4.26]
[1730982628133,6.56161387,187.43,187.41,4.26]
[1730982628771,2.7,187.47,187.41,4.26]
[1730982628772,2.6666,187.42,187.41,4.26]
[1730982628936,2.6666,187.42,187.41,2.2594]
[1730982637257,2.6666,187.42,187.41,7.2294]
[1730982638152,2.7,187.43,187.41,7.2294]
[1730982638843,5.3664,187.43,187.41,7.2294]
[1730982639646,2.6664,187.44,187.41,7.2294]
[1730982640032,2.6664,187.44,187.42,4.09]
[1730982640831,2.6664,187.43,187.42,3.09]
[1730982641635,1.6664,187.43,187.42,3.09]
[1730982641835,1.6664,187.43,187.42,2.09]
[1730982644336,6.56161387,187.45,187.42,2.09]
[1730982644544,2.6663,187.44,187.42,2.09]
[1730982646346,2.6663,187.44,187.42,8.33]
[1730982647844,2.6663,187.44,187.42,7.93]
[1730982648041,7.56758006,187.51,187.42,7.93]
[1730982648242,2.6659,187.47,187.43,6.56161387]
[1730982648640,2.6659,187.47,187.44,4.26]
[1730982648957,6.56161387,187.49,187.44,4.26]
[1730982649153,2.6661,187.46,187.44,4.26]
[1730982649555,6.56161387,187.46,187.44,4.26]
[1730982649755,2.6661,187.45,187.44,4.26]
[1730982651056,2.6661,187.45,187.44,1.43492045]
[1730982651764,2.6661,187.45,187.44,5.93492045]
[1730982652655,9.22771387,187.45,187.44,5.93492045]
[1730982653249,2.6661,187.45,187.44,5.93492045]
[1730982658348,9.22771387,187.45,187.44,5.93492045]
[1730982659346,2.6661,187.45,187.44,5.93492045]
[1730982659557,9.22771387,187.45,187.44,5.93492045]
[1730982660963,15.57239393,187.45,187.44,5.93492045]
[1730982661172,15.57239393,187.45,187.44,2.08171945]
[1730982661365,9.22771387,187.45,187.44,2.08171945]
[1730982661858,15.57239393,187.45,187.44,2.08171945]
[1730982662053,9.22771387,187.45,187.44,2.08171945]
[1730982662752,15.57239393,187.45,187.44,2.08171945]
[1730982662957,15.57239393,187.45,187.44,4.26]
[1730982663166,9.01078006,187.45,187.44,4.26]
[1730982664665,9.01078006,187.45,187.44,9.53]
[1730982664851,9.01078006,187.45,187.44,7.05396386]
[1730982665050,9.01078006,187.45,187.44,5.27]
[1730982665567,9.01078006,187.45,187.44,1.94837078]
[1730982665764,9.01078006,187.45,187.31,5.23]
[1730982665765,6.56161387,187.44,187.31,5.23]
[1730982666064,6.56161387,187.37,187.32,1.98]
[1730982666255,9.22901387,187.37,187.32,1.98]
[1730982667676,9.22901387,187.37,187.32,12.35]
[1730982668358,2.6675,187.36,187.32,12.35]
[1730982668570,2.6675,187.36,187.32,18.91161387]
[1730982669060,2.6675,187.36,187.32,12.35]
[1730982669256,2.6675,187.36,187.32,14.5]
[1730982669763,6.56161387,187.35,187.32,14.5]
[1730982669962,9.22931387,187.35,187.32,14.5]
[1730982670158,6.56161387,187.35,187.32,14.5]
[1730982670822,2.6678,187.34,187.32,14.5]
[1730982671072,6.56161387,187.35,187.32,14.5]
[1730982671567,2.6678,187.33,187.32,14.5]
[1730982672981,9.22941387,187.33,187.32,14.5]
[1730982674279,2.6678,187.33,187.32,14.5]
[1730982675962,9.22941387,187.33,187.32,14.5]
[1730982676664,2.6678,187.33,187.32,14.5]
[1730982677835,9.22941387,187.33,187.32,14.5]
[1730982682574,9.22941387,187.33,187.32,10.72]
[1730982682785,11.96391515,187.33,187.32,10.72]
[1730982684373,11.90941387,187.33,187.32,10.72]
[1730982685061,5.3478,187.33,187.32,10.72]
[1730982685263,2.6678,187.33,187.32,10.72]
[1730982690881,6.56161387,187.33,187.32,10.72]
[1730982693366,2.6678,187.33,187.32,10.72]
[1730982700182,2.6678,187.33,187.32,12.86]
[1730982700768,6.56161387,187.33,187.32,12.86]
[1730982701669,9.22941387,187.33,187.32,12.86]
[1730982714890,9.22941387,187.33,187.32,14.49]
[1730982718393,2.6678,187.33,187.32,14.49]
[1730982719591,2.68,187.35,187.32,14.49]
[1730982719794,6.34468006,187.41,187.32,14.49]
[1730982719795,6.56161387,187.33,187.32,14.49]
[1730982724698,6.56161387,187.34,187.32,14.49]
[1730982728301,2.68,187.38,187.32,14.49]
[1730982728302,6.56161387,187.33,187.32,14.49]
[1730982729509,9.22941387,187.33,187.32,14.49]
[1730982731415,2.6677,187.34,187.32,14.49]
[1730982731610,6.56161387,187.33,187.32,14.49]
[1730982733414,9.22941387,187.33,187.32,14.49]
[1730982735804,11.87273068,187.33,187.32,14.49]
[1730982736514,11.87273068,187.33,187.32,12.35]
[1730982736816,2.6684,187.29,187.25,2.565]
[1730982737013,6.56161387,187.28,187.25,2.565]
[1730982737716,9.23021387,187.28,187.25,2.565]
[1730982737907,6.56161387,187.26,187.21,1.2534]
[1730982738118,6.56161387,187.26,187.22,2.14]
[1730982738310,6.56161387,187.26,187.22,5.41]
[1730982738516,6.56161387,187.26,187.23,4.03]
[1730982739613,9.23071387,187.24,187.23,4.03]
[1730982740714,2.6691,187.24,187.23,4.03]
[1730982741319,9.23071387,187.24,187.23,4.03]
[1730982741515,6.56161387,187.24,187.23,4.03]
[1730982742424,9.23071387,187.24,187.23,4.03]
[1730982744124,6.56161387,187.24,187.23,4.03]
[1730982744523,2.68,187.26,187.23,4.03]
[1730982744727,6.56161387,187.25,187.23,4.03]
[1730982746225,5.3489,187.26,187.23,4.03]
[1730982746427,6.56161387,187.25,187.23,4.03]
[1730982751333,2.68,187.26,187.23,4.03]
[1730982752033,6.56161387,187.27,187.23,4.03]
[1730982752333,9.24161387,187.3,187.25,6.56161387]
[1730982752632,6.56161387,187.35,187.28,6.56161387]
[1730982752832,6.56161387,187.35,187.29,5.1198]
[1730982753427,6.56161387,187.35,187.3,2.6683]
[1730982753827,9.22911387,187.36,187.3,9.22991387]
[1730982754134,9.22911387,187.36,187.3,10.55131387]
[1730982755133,9.22911387,187.36,187.31,5.75]
[1730982760238,6.56161387,187.34,187.31,5.75]
[1730982760437,9.22931387,187.34,187.31,5.75]
[1730982760735,2.64623556,187.37,187.31,5.75]
[1730982760736,6.56161387,187.32,187.31,5.75]
[1730982760931,9.22961387,187.32,187.31,5.75]
[1730982761133,2.668,187.32,187.31,5.75]
[1730982765641,6.56161387,187.31,187.23,2.5539]
[1730982765944,2.66,187.33,187.23,2.5539]
[1730982765945,6.56161387,187.26,187.23,2.5539]
[1730982766146,6.56161387,187.26,187.23,1.2311]
[1730982766533,6.56161387,187.26,187.22,5.41]
[1730982766843,6.56161387,187.24,187.22,5.41]
[1730982767343,6.56161387,187.24,187.22,3.27]
[1730982767530,6.56161387,187.24,187.23,3.55]
[1730982768235,6.56161387,187.25,187.23,3.55]
[1730982768850,6.56161387,187.25,187.23,5.68]
[1730982770043,6.56161387,187.25,187.23,8.94]
[1730982770841,2.6681,187.32,187.23,8.94]
[1730982771038,6.56161387,187.29,187.23,15.50161387]
[1730982771737,9.23001387,187.29,187.23,8.94]
[1730982773448,6.56161387,187.27,187.23,8.94]
[1730982776140,6.56161387,187.27,187.23,11.6092]
[1730982776341,6.56161387,187.27,187.23,12.9174]
[1730982776537,9.23001387,187.29,187.23,12.9174]
[1730982776748,2.6686,187.28,187.23,12.9174]
[1730982783348,2.6686,187.28,187.23,19.47901387]
[1730982783742,6.56161387,187.29,187.23,19.47901387]
[1730982783743,6.56161387,187.29,187.23,16.80981387]
[1730982783950,6.56161387,187.29,187.24,2.6691]
[1730982784550,2.6684,187.29,187.24,9.23071387]
[1730982784858,6.56161387,187.3,187.24,10.48311387]
[1730982785049,2.6686,187.28,187.24,7.81401387]
[1730982786554,9.23021387,187.28,187.24,1.2524]
[1730982787556,9.23021387,187.28,187.25,2.13]
[1730982792464,2.6686,187.28,187.25,2.13]
[1730982792668,9.23021387,187.28,187.25,2.13]
[1730982793764,9.23021387,187.28,187.26,3.25]
[1730982794264,2.6686,187.28,187.26,3.25]
[1730982795165,2.6686,187.28,187.26,7.14]
[1730982796658,6.56161387,187.29,187.26,7.14]
[1730982797463,9.23001387,187.29,187.26,7.14]
[1730982800071,2.6684,187.29,187.26,7.14]
[1730982800268,9.23001387,187.29,187.26,7.14]
[1730982801572,2.6684,187.29,187.26,7.14]
[1730982802870,2.66,187.33,187.26,7.14]
[1730982803071,6.56161387,187.31,187.26,7.14]
[1730982804170,2.6683,187.3,187.26,7.14]
[1730982805381,6.56161387,187.29,187.26,7.14]
[1730982806676,9.23001387,187.29,187.26,7.14]
[1730982807579,6.56161387,187.29,187.26,7.14]
[1730982807782,9.23011387,187.29,187.26,7.14]
[1730982809085,2.6686,187.28,187.26,7.14]
[1730982809477,6.56161387,187.29,187.26,7.14]
[1730982809681,2.6687,187.27,187.26,7.14]
[1730982819196,2.6687,187.27,187.26,9.26]
[1730982819393,2.6693,187.23,187.16,3.7809]
[1730982819692,6.56161387,187.24,187.17,9.23171387]
[1730982821193,6.56161387,187.24,187.17,11.77171387]
[1730982821789,9.23071387,187.24,187.17,11.77171387]
[1730982822292,6.56161387,187.23,187.17,11.77171387]
[1730982822696,6.56161387,187.21,187.17,2.54]
[1730982823791,9.23121387,187.21,187.17,2.54]
[1730982825497,2.6698,187.2,187.17,2.54]
[1730982830296,2.6696,187.21,187.17,2.54]
[1730982831001,2.6691,187.24,187.2,6.56161387]
[1730982831396,2.66,187.26,187.2,6.56161387]
[1730982831600,2.669,187.25,187.2,6.56161387]
[1730982836601,6.56161387,187.26,187.2,6.56161387]
[1730982836809,2.6691,187.24,187.2,6.56161387]
[1730982837308,2.669,187.25,187.2,6.56161387]
[1730982839395,6.56161387,187.23,187.19,2.6698]
[1730982839601,6.56161387,187.23,187.17,5.3301]
[1730982839812,6.56161387,187.23,187.17,14.43171387]
[1730982840305,6.56161387,187.21,187.17,2.54]
[1730982840704,2.6697,187.2,187.17,2.54]
[1730982840904,6.56161387,187.21,187.17,2.54]
[1730982841404,9.23121387,187.21,187.17,2.54]
[1730982844420,6.56161387,187.21,187.17,2.54]
[1730982844600,2.6698,187.2,187.17,2.54]
[1730982846110,2.6698,187.2,187.17,9.10161387]
[1730982846512,2.6696,187.21,187.17,9.10161387]
[1730982847608,2.6697,187.2,187.17,9.10161387]
[1730982848908,2.66,187.28,187.17,9.10161387]
[1730982849111,2.6696,187.21,187.17,9.10161387]
[1730982850302,2.6697,187.2,187.17,9.10161387]
[1730982851116,2.66,187.28,187.19,6.56161387]
[1730982851314,6.56161387,187.24,187.19,6.56161387]
[1730982851615,2.6693,187.23,187.19,6.56161387]
[1730982854410,1.3154,187.31,187.19,6.56161387]
[1730982854617,6.56161387,187.27,187.21,6.56161387]
[1730982854814,6.56161387,187.27,187.22,6.56161387]
[1730982855811,2.669,187.25,187.22,6.56161387]
[1730982856214,6.56161387,187.27,187.22,6.56161387]
[1730982856517,2.6689,187.26,187.22,6.56161387]
[1730982857508,6.56161387,187.27,187.22,6.56161387]
[1730982857704,2.669,187.25,187.22,6.56161387]
[1730982858118,6.56161387,187.27,187.22,6.56161387]
[1730982858417,9.23031387,187.27,187.22,9.23101387]
[1730982858614,9.23031387,187.27,187.23,2.53]
[1730982859212,2.6687,187.27,187.23,2.53]
[1730982867225,2.6687,187.27,187.24,6.56161387]
[1730982867415,6.56161387,187.29,187.24,6.56161387]
[1730982868819,2.6687,187.27,187.24,6.56161387]
[1730982869826,6.56161387,187.29,187.24,6.56161387]
[1730982870028,2.6686,187.28,187.24,6.56161387]
[1730982875333,6.56161387,187.29,187.24,6.56161387]
[1730982875534,2.6687,187.27,187.24,6.56161387]
[1730982875730,6.56161387,187.29,187.24,6.56161387]
[1730982875932,2.66,187.33,187.24,2.6691]
[1730982876130,2.6685,187.29,187.25,6.56161387]
[1730982876435,6.56161387,187.31,187.25,6.56161387]
[1730982877133,2.6684,187.3,187.25,6.56161387]
[1730982879343,2.6684,187.3,187.26,2.53]
[1730982883240,2.668,187.32,187.27,6.56161387]
[1730982885140,1.2943,187.37,187.29,6.56161387]
[1730982885442,9.22941387,187.34,187.29,6.56161387]
[1730982885841,2.6678,187.34,187.29,6.56161387]
[1730982887841,2.6677,187.35,187.29,9.23001387]
[1730982888042,6.56161387,187.36,187.29,11.87001387]
[1730982888750,2.6677,187.34,187.29,11.87001387]
[1730982891152,2.6677,187.34,187.3,6.56161387]
[1730982899864,2.64,187.39,187.3,6.56161387]
[1730982900155,6.56161387,187.37,187.3,6.56161387]
[1730982900561,6.56161387,187.33,187.26,2.64]
[1730982900762,6.56161387,187.33,187.26,9.20161387]
[1730982901255,2.6683,187.3,187.26,9.20161387]
[1730982901652,2.6683,187.3,187.28,6.56161387]
[1730982901856,6.56161387,187.33,187.29,2.51]
[1730982902062,2.64,187.34,187.29,2.51]
[1730982902260,2.6683,187.3,187.29,2.51]
[1730982902459,1.2892,187.33,187.23,9.20161387]
[1730982902663,6.56161387,187.27,187.23,2.64]
[1730982903565,2.6688,187.27,187.23,2.64]
[1730982903776,2.6688,187.27,187.23,9.20161387]
[1730982904778,2.6687,187.27,187.23,9.20161387]
[1730982906571,1.2892,187.33,187.25,6.56161387]
[1730982906771,6.56161387,187.31,187.25,6.56161387]
[1730982907471,9.22991387,187.31,187.25,6.56161387]
[1730982907669,6.56161387,187.33,187.27,6.56161387]
[1730982908071,2.6681,187.31,187.27,6.56161387]
[1730982908778,6.56161387,187.33,187.27,6.56161387]
[1730982908969,2.6681,187.32,187.27,6.56161387]
[1730982910379,9.22951387,187.33,187.27,9.23031387]
[1730982910780,2.6679,187.33,187.29,6.56161387]
[1730982910975,2.6677,187.34,187.29,6.56161387]
[1730982912086,2.6679,187.33,187.29,6.56161387]
[1730982913672,2.6669,187.4,187.32,6.56161387]
[1730982913880,6.56137103,187.43,187.32,6.56161387]
[1730982913881,6.56161387,187.39,187.32,6.56161387]
[1730982914278,9.22911387,187.36,187.29,2.6684]
[1730982914478,6.56161387,187.36,187.29,6.56161387]
[1730982915079,2.6676,187.35,187.29,6.56161387]
[1730982917087,2.6676,187.35,187.29,9.23001387]
[1730982917385,6.56161387,187.36,187.31,6.56161387]
[1730982917587,2.6677,187.34,187.3,6.56161387]
[1730982917785,6.56161387,187.36,187.3,6.56161387]
[1730982918384,2.6676,187.35,187.3,6.56161387]
[1730982918683,8.51599216,187.43,187.32,6.56161387]
[1730982918878,2.667,187.39,187.34,6.56161387]
[1730982919678,9.22851387,187.4,187.34,9.22931387]
[1730982920284,6.56161387,187.4,187.34,6.56161387]
[1730982920484,2.667,187.39,187.34,6.56161387]
[1730982920779,6.56161387,187.35,187.28,2.64]
[1730982920985,9.22951387,187.33,187.28,2.64]
[1730982921183,9.22951387,187.33,187.27,6.56161387]
[1730982921490,6.56161387,187.33,187.27,6.56161387]
[1730982921686,2.6681,187.32,187.27,6.56161387]
[1730982922584,2.6682,187.31,187.27,6.56161387]
[1730982923891,2.6685,187.29,187.25,10.40871387]
[1730982924894,2.6687,187.27,187.24,1.3299]
[1730982925089,2.6687,187.27,187.23,6.56161387]
[1730982925789,9.23011387,187.29,187.23,6.56161387]
[1730982926689,2.6686,187.28,187.23,6.56161387]
[1730982928186,2.6686,187.28,187.23,9.23081387]
[1730982933489,9.23021387,187.28,187.23,2.6692]
[1730982933797,6.56161387,187.24,187.19,6.56161387]
[1730982935196,9.23081387,187.24,187.19,6.56161387]
[1730982935394,6.56161387,187.22,187.18,5.31]
[1730982935990,9.23111387,187.22,187.15,7.77071387]
[1730982936195,6.56161387,187.21,187.15,7.77071387]
[1730982936692,9.23121387,187.21,187.16,2.6702]
[1730982936993,9.23121387,187.21,187.15,7.77071387]
[1730982936994,9.23121387,187.21,187.15,3.8795]
[1730982937296,2.6697,187.2,187.15,3.8795]
[1730982937798,6.56161387,187.21,187.15,1.2091]
[1730982937996,9.23151387,187.19,187.15,1.2091]
[1730982938697,9.23151387,187.19,187.14,6.56161387]
[1730982940303,6.56161387,187.17,187.1,2.64]
[1730982940507,6.56161387,187.17,187.12,6.56161387]
[1730982941005,6.56161387,187.17,187.13,2.6707]
[1730982941599,9.23181387,187.17,187.13,2.6707]
[1730982943199,9.23181387,187.17,187.12,9.23241387]
[1730982944002,2.6703,187.16,187.07,3.7139]
[1730982944202,9.23191387,187.16,187.11,2.6709]
[1730982945614,2.6705,187.15,187.1,9.23271387]
[1730982945908,2.6705,187.15,187.1,6.56161387]
[1730982946411,2.6708,187.13,187.07,10.27551387]
[1730982946709,2.6708,187.13,187.09,6.56161387]
[1730982947601,2.64,187.16,187.09,6.56161387]
[1730982947798,9.23211387,187.15,187.1,2.6711]
[1730982949508,9.20161387,187.16,187.11,9.23261387]
[1730982950803,9.20161387,187.16,187.11,6.56161387]
[1730982951004,9.20161387,187.16,187.12,2.6708]
[1730982951502,9.20161387,187.16,187.11,6.56161387]
[1730982951710,9.20161387,187.16,187.11,9.23251387]
[1730982953104,2.64,187.16,187.11,9.23251387]
[1730982953708,2.6701,187.17,187.11,9.23251387]
[1730982956106,9.20161387,187.2,187.13,6.56161387]
[1730982956605,6.56161387,187.18,187.13,6.56161387]
[1730982957001,6.56161387,187.18,187.12,2.6708]
[1730982957805,9.23161387,187.18,187.12,2.6708]
[1730982958510,6.56161387,187.16,187.11,6.56161387]
[1730982958698,6.56161387,187.16,187.11,9.23251387]
[1730982958904,6.56161387,187.16,187.09,6.56161387]
[1730982959103,6.56161387,187.15,187.09,6.56161387]
[1730982959597,9.23211387,187.15,187.09,9.23271387]
[1730982960908,2.6705,187.15,187.11,6.56161387]
[1730982962915,2.6705,187.15,187.11,9.23261387]
[1730982963811,2.6705,187.15,187.11,6.56161387]
[1730982965009,2.6705,187.15,187.11,9.23261387]
[1730982966113,6.56161387,187.16,187.11,6.56161387]
[1730982966322,6.56161387,187.16,187.07,3.7139]
[1730982966323,6.56161387,187.18,187.12,9.23241387]
[1730982966715,6.56161387,187.18,187.12,2.6708]
[1730982966914,6.56161387,187.18,187.12,9.23241387]
[1730982968723,9.23171387,187.18,187.12,9.23241387]
[1730982971925,9.23171387,187.18,187.13,2.6707]
[1730982974717,6.56161387,187.18,187.13,2.6707]
[1730982974925,2.6701,187.17,187.13,2.6707]
[1730982976726,6.56161387,187.18,187.13,2.6707]
[1730982976927,2.6699,187.19,187.13,2.6707]
[1730982977137,27.94835779,187.25,187.16,6.56161387]
[1730982977138,6.56161387,187.22,187.16,6.56161387]
[1730982977525,2.6698,187.2,187.15,6.56161387]
[1730982977726,6.56161387,187.2,187.15,6.56161387]
[1730982977921,6.56161387,187.2,187.13,7.85241387]
[1730982978132,6.56161387,187.19,187.13,7.85241387]
[1730982978526,2.67,187.18,187.14,2.6705]
[1730982978725,6.56161387,187.19,187.13,7.85241387]
[1730982979330,6.56161387,187.19,187.13,1.2908]
[1730982979828,2.6701,187.17,187.13,1.2908]
[1730982980337,2.6701,187.17,187.12,6.56161387]
[1730982980338,9.23171387,187.17,187.12,6.56161387]
[1730982980638,2.6703,187.16,187.12,6.56161387]
[1730982980937,6.56161387,187.17,187.1,9.20161387]
[1730982981135,2.6705,187.15,187.1,9.20161387]
[1730982981943,2.6705,187.15,187.12,6.56161387]
[1730982983136,6.56161387,187.14,187.07,2.4475]
[1730982983344,6.56161387,187.12,187.04,2.6718]
[1730982983533,6.56161387,187.12,187.04,6.56161387]
[1730982983729,6.56161387,187.12,187.06,6.56161387]
[1730982984140,2.6711,187.11,187.05,2.6718]
[1730982984339,2.6711,187.11,187.05,9.23341387]
[1730982984539,2.64,187.17,187.07,6.56161387]
[1730982984734,6.56161387,187.13,187.07,6.56161387]
[1730982984936,6.56161387,187.13,187.07,9.23311387]
[1730982985842,9.23211387,187.14,187.08,2.6713]
[1730982986341,2.6707,187.13,187.08,2.6713]
[1730982986740,9.23231387,187.14,187.09,2.6712]
[1730982986946,9.23231387,187.14,187.07,6.56161387]
[1730982987148,6.56161387,187.14,187.07,6.56161387]
[1730982987443,6.56161387,187.14,187.02,2.5422]
[1730982987644,6.56161387,187.14,187.07,6.56161387]
[1730982987948,2.64,187.15,187.09,2.6712]
[1730982988247,6.56161387,187.14,187.09,9.23281387]
[1730982988647,9.20161387,187.15,187.1,2.671]
[1730982988947,9.20161387,187.15,187.09,6.56161387]
[1730982989741,9.20161387,187.15,187.1,2.6711]
[1730982990642,9.20161387,187.15,187.1,9.23271387]
[1730982990842,2.6706,187.14,187.1,9.23271387]
[1730982991140,9.20161387,187.15,187.1,9.23271387]
[1730982991939,11.87201387,187.15,187.1,9.23271387]
[1730982992447,9.20161387,187.15,187.1,9.23271387]
[1730982992640,6.56161387,187.17,187.11,9.23251387]
[1730982993245,9.23181387,187.17,187.11,9.23251387]
[1730982995141,6.56161387,187.17,187.11,6.56161387]
[1730982995347,6.56161387,187.18,187.13,6.56161387]
[1730982995741,9.23171387,187.18,187.13,6.56161387]
[1730982996542,9.23171387,187.18,187.12,2.6708]
[1730982998150,6.56161387,187.17,187.12,2.6708]
[1730982998345,9.23181387,187.17,187.11,6.56161387]
[1730982999451,9.23181387,187.17,187.11,9.23261387]
[1730983001552,2.6703,187.16,187.11,9.23261387]
[1730983002245,6.56161387,187.17,187.11,6.56161387]
[1730983002450,9.23181387,187.17,187.12,2.6708]
[1730983003554,2.6703,187.16,187.12,2.6708]
[1730983004546,2.6703,187.16,187.11,6.56161387]
[1730983004746,2.6703,187.16,187.11,9.23251387]
[1730983005254,6.56161387,187.17,187.11,6.56161387]
[1730983005550,9.23181387,187.17,187.12,2.6708]
[1730983006354,2.6702,187.17,187.12,2.6708]
[1730983006553,5.88907457,187.24,187.13,6.56161387]
[1730983006741,2.64,187.2,187.13,6.56161387]
[1730983006941,2.64,187.2,187.08,5.2047]
[1730983007252,2.6701,187.18,187.14,6.56161387]
[1730983008647,6.56161387,187.2,187.14,6.56161387]
[1730983008950,2.6701,187.17,187.14,6.56161387]
[1730983011148,2.67,187.18,187.14,6.56161387]
[1730983011452,6.56161387,187.2,187.14,6.56161387]
[1730983011654,6.56161387,187.18,187.12,9.23241387]
[1730983012747,2.6702,187.17,187.12,9.23241387]
[1730983017158,2.6702,187.17,187.12,2.6708]
[1730983017349,2.6702,187.17,187.12,9.23241387]
[1730983020859,2.64,187.22,187.14,6.56161387]
[1730983021052,7.81287457,187.27,187.1,2.64]
[1730983021053,7.81287457,187.27,187.16,6.56161387]
[1730983021254,6.56161387,187.22,187.16,6.56161387]
[1730983021758,2.6696,187.21,187.16,6.56161387]
[1730983021958,6.56161387,187.22,187.16,6.56161387]
[1730983022761,2.6697,187.2,187.16,6.56161387]
[1730983029868,2.6697,187.2,187.16,9.23181387]
[1730983033465,2.6696,187.21,187.18,6.56161387]
[1730983035161,6.56161387,187.22,187.18,6.56161387]
[1730983035361,2.64,187.24,187.18,6.56161387]
[1730983035362,2.6693,187.23,187.18,6.56161387]
[1730983038073,9.23111387,187.22,187.16,13.14751387]
[1730983038465,9.23111387,187.22,187.16,10.47731387]
[1730983038965,9.23111387,187.22,187.17,2.6701]